[Event "Chigorin Memorial 2019"]
[Site "Saint Petersburg"]
[Date "2019.10.12"]
[Round "8.4"]
[White "Shubin, Kirill"]
[Black "Khalifman, Alexander"]
[Result "1/2-1/2"]
[ECO "C90"]
[WhiteElo "2416"]
[BlackElo "2614"]
[Annotator "RC"]
[PlyCount "54"]
[EventDate "2019.10.05"]
[EventType "swiss"]
[EventCountry "RUS"]
[SourceTitle "playchess.com"]
[Source "ChessBase"]
[SourceQuality "1"]
[TimeControl "5400+30"]

1. e4 {[%emt 0:00:00]} e5 {[%emt 0:00:00]} 2. Nf3 {[%emt 0:00:00]} Nc6 {[%emt 0:00:00]} 3. Bb5 {[%emt 0:00:00]} a6 {[%emt 0:00:00]} 4. Ba4 {[%emt 0:00:00]} Nf6 {[%emt 0:00:00]} 5. O-O {[%emt 0:00:00]} Be7 {[%emt 0:00:06]} 6. Re1 {[%emt 0:00:00]} b5 {[%emt 0:00:06]} 7. Bb3 {[%emt 0:00:00]} O-O {[%emt 0:00:06]} 8. d3 {[%emt 0:00:02]} d6 {[%emt 0:00:25]} 9. c3 {[%emt 0:00:04]} Na5 {[%emt 0:03:25]} 10. Bc2 {[%emt 0:00:22]} c5 {[%emt 0:00:07]} 11. Nbd2 {[%emt 0:00:04]} Nc6 {[%emt 0:00:26]} 12. Nf1 {[%emt 0:00:20]} Re8 {[%emt 0:02:25]} 13. a4 {[%emt 0:05:43]} Bd7 {[%emt 0:12:15]} 14. Ne3 {[%emt 0:05:26]} h6 {[%emt 0:16:26]} 15. h3 {[%emt 0:15:31]} Rc8 {[%emt 0:07:27]} 16. Nh2 {[%emt 0:01:19]} Be6 {[%emt 0:00:42]} 17. Nhg4 {[%emt 0:06:26]} Nxg4 {[%emt 0:02:14]} 18. hxg4 {[%emt 0:00:17]} Bg5 {[%emt 0:00:07]} 19. axb5 {[%emt 0:07:18]} axb5 {[%emt 0:00:21]} 20. Bb3 {[%emt 0:05:29]} Bxe3 {[%emt 0:06:58]} 21. Bxe3 {[%emt 0:00:27]} Qd7 {[%emt 0:02:58]} 22. Bxe6 {[%emt 0:00:06]} Qxe6 {[%emt 0:00:44]} 23. Ra6 {[%emt 0:00:06]} b4 {[%emt 0:05:37]} 24. c4 {[%emt 0:04:57]} Nb8 {[%emt 0:00:34]} 25. Ra5 {[%emt 0:03:41]} Nc6 {[%emt 0:00:08]} 26. Ra6 {[%emt 0:00:05]} Nb8 {[%emt 0:00:06]} 27. Ra5 {[%emt 0:00:03]} Nc6 {[%emt 0:00:05]} 1/2-1/2

[Event "Chigorin Memorial 2019"]
[Site "Saint Petersburg"]
[Date "2019.10.12"]
[Round "8.5"]
[White "Kryakvin, Dmitry"]
[Black "Pourramezanali, Amirreza"]
[Result "1/2-1/2"]
[ECO "D35"]
[WhiteElo "2608"]
[BlackElo "2478"]
[Annotator "ChessBase"]
[PlyCount "120"]
[EventDate "2019.10.05"]
[EventType "swiss"]
[EventCountry "RUS"]
[SourceTitle "playchess.com"]
[Source "ChessBase"]
[SourceQuality "1"]
[TimeControl "5400+30"]

1. d4 {[%emt 0:01:24]} d5 {[%emt 0:00:00]} 2. c4 {[%emt 0:00:07]} e6 {[%emt 0:00:00]} 3. Nc3 {[%emt 0:00:39]} Be7 {[%emt 0:00:00]} 4. cxd5 {[%emt 0:00:11]} exd5 {[%emt 0:00:00]} 5. Bf4 {[%emt 0:00:05]} Nf6 {[%emt 0:00:05]} 6. e3 {[%emt 0:00:08]} O-O {[%emt 0:00:05]} 7. Bd3 {[%emt 0:00:07]} c5 {[%emt 0:00:05]} 8. Nge2 {[%emt 0:00:06]} Nc6 {[%emt 0:00:04]} 9. O-O {[%emt 0:00:10]} c4 {[%emt 0:00:02]} 10. Bc2 {[%emt 0:00:07]} Nh5 {[%emt 0:00:04]} 11. b3 {[%emt 0:02:14]} Qa5 {[%emt 0:00:10]} 12. Na4 {[%emt 0:06:53]} Nb4 {[%emt 0:17:10]} 13. Bb1 {[%emt 0:04:43]} b6 {[%emt 0:33:16]} 14. Bc7 {[%emt 0:18:05]} g6 {[%emt 0:13:41]} 15. a3 {[%emt 0:08:17]} Nd3 {[%emt 0:02:51]} 16. Nec3 {[%emt 0:54:44]} Nb2 {[%emt 0:30:27]} 17. b4 {[%emt 0:00:00]} Nxd1 {[%emt 0:00:00]} 18. bxa5 {[%emt 0:00:00]} Nxc3 {[%emt 0:00:00]} 19. Nxc3 {[%emt 0:00:00]} Be6 {[%emt 0:00:00]} 20. Bc2 {[%emt 0:00:00]} Rfc8 {[%emt 0:00:00]} 21. axb6 {[%emt 0:00:00]} axb6 {[%emt 0:00:00]} 22. Bxb6 {[%emt 0:00:00]} Rxa3 {[%emt 0:00:00]} 23. Rxa3 {[%emt 0:00:00]} Bxa3 {[%emt 0:00:00]} 24. Rb1 {[%emt 0:00:00]} Nf6 {[%emt 0:00:00]} 25. Kf1 {[%emt 0:00:00]} Nd7 {[%emt 0:00:00]} 26. Ba7 {[%emt 0:00:00]} Rc7 {[%emt 0:00:00]} 27. Bb8 {[%emt 0:00:00]} Nxb8 {[%emt 0:00:00]} 28. Rxb8+ {[%emt 0:00:00]} Bf8 {[%emt 0:00:00]} 29. Ba4 {[%emt 0:00:00]} Kg7 {[%emt 0:00:00]} 30. g3 {[%emt 0:00:00]} Ra7 {[%emt 0:00:00]} 31. Ke2 {[%emt 0:00:00]} Bd6 {[%emt 0:00:00]} 32. Rb2 {[%emt 0:00:00]} h5 {[%emt 0:00:00]} 33. Bc6 {[%emt 0:00:00]} Ra5 {[%emt 0:00:00]} 34. h4 {[%emt 0:00:00]} Bc7 {[%emt 0:01:38]} 35. Rb7 {[%emt 0:00:00]} Bd6 {[%emt 0:01:33]} 36. Kd2 {[%emt 0:03:52]} Ra6 {[%emt 0:01:16]} 37. Bxd5 {[%emt 0:01:52]} Bxd5 {[%emt 0:00:32]} 38. Nxd5 {[%emt 0:00:03]} Ra2+ {[%emt 0:00:05]} 39. Ke1 {[%emt 0:00:30]} Rc2 {[%emt 0:00:08]} 40. Kf1 {[%emt 0:02:17]} Ba3 {[%emt 0:01:21]} 41. Rc7 {[%emt 0:00:30]} Kf8 {[%emt 0:00:28]} 42. Kg2 {[%emt 0:00:24]} Bc1 {[%emt 0:01:01]} 43. Kf1 {[%emt 0:01:52]} Bd2 {[%emt 0:00:19]} 44. Nf6 {[%emt 0:00:56]} Ba5 {[%emt 0:03:16]} 45. Rc5 {[%emt 0:00:31]} Rc1+ {[%emt 0:00:25]} 46. Kg2 {[%emt 0:00:46]} Be1 {[%emt 0:00:02]} 47. Ne4 {[%emt 0:00:28]} f5 {[%emt 0:03:26]} 48. Ng5 {[%emt 0:01:05]} Rc2 {[%emt 0:00:00]} 49. Nh3 {[%emt 0:00:07]} Bb4 {[%emt 0:00:00]} 50. Rc6 {[%emt 0:00:25]} Kf7 {[%emt 0:00:00]} 51. Kf3 {[%emt 0:00:40]} Be1 {[%emt 0:00:00]} 52. d5 {[%emt 0:00:48]} c3 {[%emt 0:00:00]} 53. Rc7+ {[%emt 0:00:27]} Kf6 {[%emt 0:00:00]} 54. d6 {[%emt 0:00:19]} Ke6 {[%emt 0:00:01]} 55. d7 {[%emt 0:00:27]} Ke7 {[%emt 0:00:05]} 56. e4 {[%emt 0:00:12]} fxe4+ {[%emt 0:01:18]} 57. Kxe4 {[%emt 0:00:04]} Kd8 {[%emt 0:00:05]} 58. Rc4 {[%emt 0:00:11]} Bxf2 {[%emt 0:01:19]} 59. Nxf2 {[%emt 0:00:48]} Rxf2 {[%emt 0:00:05]} 60. Rxc3 {[%emt 0:00:03]} Kxd7 {[%emt 0:03:37]} 1/2-1/2

[Event "Chigorin Memorial 2019"]
[Site "Saint Petersburg"]
[Date "2019.10.12"]
[Round "8.6"]
[White "Smirin, Ilia"]
[Black "Levin, Evgeny A."]
[Result "1/2-1/2"]
[ECO "C10"]
[WhiteElo "2599"]
[BlackElo "2519"]
[Annotator "RC"]
[PlyCount "104"]
[EventDate "2019.10.05"]
[EventType "swiss"]
[EventCountry "RUS"]
[SourceTitle "playchess.com"]
[Source "ChessBase"]
[SourceQuality "1"]
[TimeControl "5400+30"]

1. e4 {[%emt 0:05:11]} e6 {[%emt 0:04:26]} 2. d4 {[%emt 0:00:08]} d5 {[%emt 0:00:05]} 3. Nc3 {[%emt 0:00:03]} Nf6 {[%emt 0:00:05]} 4. Bg5 {[%emt 0:00:13]} dxe4 {[%emt 0:00:38]} 5. Nxe4 {[%emt 0:00:22]} Nbd7 {[%emt 0:00:33]} 6. Nf3 {[%emt 0:02:46]} h6 {[%emt 0:07:59]} 7. Nxf6+ {[%emt 0:00:12]} Nxf6 {[%emt 0:00:05]} 8. Bxf6 {[%emt 0:00:13]} Qxf6 {[%emt 0:00:33]} 9. Bd3 {[%emt 0:00:12]} Bd7 {[%emt 0:11:01]} 10. Qe2 {[%emt 0:03:40]} Bd6 {[%emt 0:04:12]} 11. O-O-O {[%emt 0:12:21]} O-O-O {[%emt 0:07:36]} 12. Be4 {[%emt 0:03:16]} Kb8 {[%emt 0:00:41]} 13. Kb1 {[%emt 0:00:15]} g5 {[%emt 0:09:56]} 14. c3 {[%emt 0:10:23]} g4 {[%emt 0:01:46]} 15. Nd2 {[%emt 0:00:04]} e5 {[%emt 0:09:26]} 16. dxe5 {[%emt 0:01:35]} Bxe5 {[%emt 0:02:08]} 17. Nc4 {[%emt 0:06:47]} Bb5 {[%emt 0:10:20]} 18. Bd5 {[%emt 0:02:56]} Qf5+ {[%emt 0:17:30]} 19. Qc2 {[%emt 0:01:06]} Qxc2+ {[%emt 0:00:06]} 20. Kxc2 {[%emt 0:00:04]} Bxc4 {[%emt 0:00:15]} 21. Bxc4 {[%emt 0:00:16]} Bd6 {[%emt 0:00:52]} 22. Rd5 {[%emt 0:01:15]} Bf4 {[%emt 0:05:21]} 23. g3 {[%emt 0:01:45]} Rxd5 {[%emt 0:03:13]} 24. Bxd5 {[%emt 0:00:04]} Be5 {[%emt 0:02:21]} 25. Kd3 {[%emt 0:06:13]} c6 {[%emt 0:00:43]} 26. Bb3 {[%emt 0:02:02]} f5 {[%emt 0:00:18]} 27. Re1 {[%emt 0:00:24]} Rd8+ {[%emt 0:00:38]} 28. Ke2 {[%emt 0:01:07]} Kc7 {[%emt 0:00:29]} 29. Kf1 {[%emt 0:01:08]} Kd6 {[%emt 0:00:37]} 30. Rd1+ {[%emt 0:00:36]} Ke7 {[%emt 0:00:04]} 31. Rxd8 {[%emt 0:00:04]} Kxd8 {[%emt 0:00:02]} 32. Be6 {[%emt 0:00:08]} f4 {[%emt 0:00:20]} 33. Bxg4 {[%emt 0:00:07]} Bd6 {[%emt 0:00:39]} 34. Ke2 {[%emt 0:00:53]} a5 {[%emt 0:00:32]} 35. Kf3 {[%emt 0:00:18]} fxg3 {[%emt 0:00:05]} 36. hxg3 {[%emt 0:01:04]} Bc5 {[%emt 0:00:03]} 37. Ke2 {[%emt 0:00:23]} Kc7 {[%emt 0:00:14]} 38. f4 {[%emt 0:00:10]} Kd6 {[%emt 0:00:16]} 39. Kf3 {[%emt 0:00:45]} b5 {[%emt 0:00:48]} 40. Bh5 {[%emt 0:00:58]} b4 {[%emt 0:00:12]} 41. Ke4 {[%emt 0:00:40]} bxc3 {[%emt 0:00:08]} 42. bxc3 {[%emt 0:00:04]} Bf2 {[%emt 0:00:13]} 43. g4 {[%emt 0:00:09]} Be1 {[%emt 0:01:04]} 44. c4 {[%emt 0:01:42]} c5 {[%emt 0:01:31]} 45. Be8 {[%emt 0:00:48]} Bd2 {[%emt 0:00:17]} 46. Kf5 {[%emt 0:00:21]} Bc1 {[%emt 0:00:42]} 47. Ba4 {[%emt 0:01:04]} Bd2 {[%emt 0:00:25]} 48. g5 {[%emt 0:00:19]} hxg5 {[%emt 0:00:03]} 49. fxg5 {[%emt 0:00:05]} Ke7 {[%emt 0:00:13]} 50. Bc2 {[%emt 0:00:32]} Bc1 {[%emt 0:00:21]} 51. g6 {[%emt 0:00:39]} Bb2 {[%emt 0:00:12]} 52. Ke4 {[%emt 0:00:19]} Kd6 {[%emt 0:00:05]} 1/2-1/2

[Event "Chigorin Memorial 2019"]
[Site "Saint Petersburg"]
[Date "2019.10.12"]
[Round "8.7"]
[White "Gareyev, Timur"]
[Black "Vokhidov, Shamsiddin"]
[Result "1-0"]
[ECO "A22"]
[WhiteElo "2591"]
[BlackElo "2519"]
[Annotator "ChessBase"]
[PlyCount "48"]
[EventDate "2019.10.05"]
[EventType "swiss"]
[EventCountry "RUS"]
[SourceTitle "playchess.com"]
[Source "ChessBase"]
[SourceQuality "1"]
[TimeControl "5400+30"]

1. c4 {[%emt 0:01:26]} e5 {[%emt 0:00:00]} 2. Nc3 {[%emt 0:04:50]} Nf6 {[%emt 0:02:31]} 3. g3 {[%emt 0:00:05]} Bb4 {[%emt 0:00:40]} 4. e4 {[%emt 0:00:04]} Bxc3 {[%emt 0:03:04]} 5. dxc3 {[%emt 0:00:32]} d6 {[%emt 0:00:12]} 6. f3 {[%emt 0:00:05]} Be6 {[%emt 0:03:05]} 7. Nh3 {[%emt 0:00:03]} h6 {[%emt 0:00:15]} 8. Nf2 {[%emt 0:00:13]} Nfd7 {[%emt 0:01:00]} 9. f4 {[%emt 0:10:56]} f6 {[%emt 0:04:08]} 10. f5 {[%emt 0:15:51]} Bf7 {[%emt 0:00:19]} 11. g4 {[%emt 0:01:14]} Nb6 {[%emt 0:04:45]} 12. b3 {[%emt 0:01:45]} c6 {[%emt 0:01:21]} 13. a4 {[%emt 0:00:54]} d5 {[%emt 0:02:36]} 14. exd5 {[%emt 0:20:37]} cxd5 {[%emt 0:00:04]} 15. Bg2 {[%emt 0:01:44]} a5 {[%emt 0:16:27]} 16. Be3 {[%emt 0:01:54]} Nc6 {[%emt 0:00:29]} 17. O-O {[%emt 0:01:16]} Ne7 {[%emt 0:00:41]} 18. Qd3 {[%emt 0:06:15]} Ra6 {[%emt 0:07:04]} 19. Rad1 {[%emt 0:02:20]} O-O {[%emt 0:04:23]} 20. cxd5 {[%emt 0:03:04]} Qc8 {[%emt 0:14:42]} 21. c4 {[%emt 0:00:46]} Rd8 {[%emt 0:00:05]} 22. Ne4 {[%emt 0:01:55]} Nd7 {[%emt 0:00:14]} 23. h4 {[%emt 0:00:33]} Nf8 {[%emt 0:05:28]} 24. Bc5 {[%emt 0:00:53]} Ra8 {[%emt 0:28:27]} 1-0

[Event "Chigorin Memorial 2019"]
[Site "Saint Petersburg"]
[Date "2019.10.12"]
[Round "8.8"]
[White "Aleksandrov, Aleksej"]
[Black "Nesterov, Arseniy"]
[Result "1-0"]
[ECO "E32"]
[WhiteElo "2577"]
[BlackElo "2484"]
[Annotator "ChessBase"]
[PlyCount "99"]
[EventDate "2019.10.05"]
[EventType "swiss"]
[EventCountry "RUS"]
[SourceTitle "playchess.com"]
[Source "ChessBase"]
[SourceQuality "1"]
[TimeControl "5400+30"]

1. d4 {[%emt 0:00:00]} Nf6 {[%emt 0:00:00]} 2. c4 {[%emt 0:00:00]} e6 {[%emt 0:00:00]} 3. Nc3 {[%emt 0:00:00]} Bb4 {[%emt 0:00:00]} 4. Qc2 {[%emt 0:00:00]} O-O {[%emt 0:00:14]} 5. e4 {[%emt 0:00:00]} d5 {[%emt 0:00:08]} 6. e5 {[%emt 0:00:00]} Ne4 {[%emt 0:00:16]} 7. Bd3 {[%emt 0:00:00]} c5 {[%emt 0:00:48]} 8. Nf3 {[%emt 0:00:02]} cxd4 {[%emt 0:01:50]} 9. Nxd4 {[%emt 0:00:05]} Nd7 {[%emt 0:00:07]} 10. Bf4 {[%emt 0:00:05]} Ndc5 {[%emt 0:02:11]} 11. O-O {[%emt 0:00:12]} Bxc3 {[%emt 0:00:39]} 12. bxc3 {[%emt 0:00:06]} Nxd3 {[%emt 0:11:27]} 13. Qxd3 {[%emt 0:00:04]} b6 {[%emt 0:04:14]} 14. cxd5 {[%emt 0:00:05]} Qxd5 {[%emt 0:00:59]} 15. c4 {[%emt 0:08:51]} Nc5 {[%emt 0:00:06]} 16. Qg3 {[%emt 0:00:33]} Qxd4 {[%emt 0:13:45]} 17. Bh6 {[%emt 0:00:10]} g6 {[%emt 0:00:03]} 18. Rad1 {[%emt 1:17:11]} Qe4 {[%emt 0:01:01]} 19. f3 {[%emt 0:00:30]} Qf5 {[%emt 0:01:13]} 20. Qe1 {[%emt 0:04:43]} Qh5 {[%emt 0:08:24]} 21. Qe3 {[%emt 0:00:37]} Bb7 {[%emt 0:06:18]} 22. Bg5 {[%emt 0:01:38]} h6 {[%emt 0:03:36]} 23. Bxh6 {[%emt 0:00:35]} Rfd8 {[%emt 0:03:59]} 24. Bg5 {[%emt 0:00:13]} Rxd1 {[%emt 0:00:13]} 25. Rxd1 {[%emt 0:00:02]} Ne4 {[%emt 0:01:21]} 26. Be7 {[%emt 0:00:38]} Bc6 {[%emt 0:02:05]} 27. Rd4 {[%emt 0:01:19]} Re8 {[%emt 0:01:11]} 28. Bd8 {[%emt 0:00:35]} Nc5 {[%emt 0:15:14]} 29. Rh4 {[%emt 0:02:35]} Rxd8 {[%emt 0:00:13]} 30. Rxh5 {[%emt 0:00:03]} Rd1+ {[%emt 0:00:05]} 31. Kf2 {[%emt 0:00:03]} gxh5 {[%emt 0:00:52]} 32. Qg5+ {[%emt 0:00:06]} Kf8 {[%emt 0:00:09]} 33. Qxh5 {[%emt 0:00:04]} Nd3+ {[%emt 0:04:55]} 34. Kg3 {[%emt 0:01:31]} Ne1 {[%emt 0:11:47]} 35. h4 {[%emt 0:00:53]} Ra1 {[%emt 0:01:16]} 36. Qh6+ {[%emt 0:00:11]} Ke8 {[%emt 0:00:12]} 37. Qd2 {[%emt 0:00:31]} Ba4 {[%emt 0:01:27]} 38. h5 {[%emt 0:00:47]} Bc2 {[%emt 0:00:20]} 39. Kh4 {[%emt 0:00:55]} Bf5 {[%emt 0:02:19]} 40. Kg5 {[%emt 0:01:33]} Nd3 {[%emt 0:02:14]} 41. Kf6 {[%emt 0:00:10]} Nc5 {[%emt 0:01:04]} 42. g4 {[%emt 0:01:35]} Be4 {[%emt 0:01:21]} 43. Qf2 {[%emt 0:01:22]} Bd3 {[%emt 0:01:15]} 44. Kg7 {[%emt 0:00:12]} Rh1 {[%emt 0:00:35]} 45. Qd4 {[%emt 0:00:16]} Rh3 {[%emt 0:00:21]} 46. Qf4 {[%emt 0:00:10]} Kd8 {[%emt 0:00:38]} 47. Qxf7 {[%emt 0:00:57]} Bxc4 {[%emt 0:00:30]} 48. h6 {[%emt 0:00:37]} Bd3 {[%emt 0:00:07]} 49. g5 {[%emt 0:00:08]} Rg3 {[%emt 0:00:49]} 50. f4 {[%emt 0:00:59]} 1-0

[Event "Chigorin Memorial 2019"]
[Site "Saint Petersburg"]
[Date "2019.10.12"]
[Round "8.9"]
[White "Khlebovich, Alexander"]
[Black "Volkov, Sergey"]
[Result "1/2-1/2"]
[ECO "D12"]
[WhiteElo "2398"]
[BlackElo "2576"]
[Annotator "ChessBase"]
[PlyCount "185"]
[EventDate "2019.10.05"]
[EventType "swiss"]
[EventCountry "RUS"]
[SourceTitle "playchess.com"]
[Source "ChessBase"]
[SourceQuality "1"]
[TimeControl "5400+30"]

1. d4 {[%emt 0:00:00]} d5 {[%emt 0:00:00]} 2. Nf3 {[%emt 0:00:00]} Nf6 {[%emt 0:00:02]} 3. c4 {[%emt 0:00:01]} c6 {[%emt 0:00:07]} 4. e3 {[%emt 0:00:18]} Bf5 {[%emt 0:00:24]} 5. Bd3 {[%emt 0:00:33]} Bg6 {[%emt 0:00:43]} 6. O-O {[%emt 0:00:37]} e6 {[%emt 0:00:16]} 7. Qc2 {[%emt 0:01:02]} Nbd7 {[%emt 0:02:04]} 8. Nbd2 {[%emt 0:01:04]} Be7 {[%emt 0:05:35]} 9. b3 {[%emt 0:01:48]} O-O {[%emt 0:00:55]} 10. Bb2 {[%emt 0:01:19]} Qc7 {[%emt 0:02:30]} 11. Rac1 {[%emt 0:05:53]} Rad8 {[%emt 0:02:22]} 12. Rfe1 {[%emt 0:01:18]} Rfe8 {[%emt 0:00:18]} 13. h3 {[%emt 0:01:28]} Qb8 {[%emt 0:04:46]} 14. Bxg6 {[%emt 0:02:55]} hxg6 {[%emt 0:00:07]} 15. c5 {[%emt 0:01:36]} Rc8 {[%emt 0:00:21]} 16. b4 {[%emt 0:00:42]} b6 {[%emt 0:02:13]} 17. Bc3 {[%emt 0:06:24]} a5 {[%emt 0:09:56]} 18. Rb1 {[%emt 0:04:28]} axb4 {[%emt 0:01:31]} 19. Bxb4 {[%emt 0:00:12]} bxc5 {[%emt 0:01:30]} 20. Bxc5 {[%emt 0:00:15]} Qa8 {[%emt 0:00:18]} 21. Bxe7 {[%emt 0:03:03]} Rxe7 {[%emt 0:00:12]} 22. Nb3 {[%emt 0:00:54]} Ne4 {[%emt 0:00:31]} 23. Nfd2 {[%emt 0:00:24]} Nxd2 {[%emt 0:02:12]} 24. Qxd2 {[%emt 0:00:15]} c5 {[%emt 0:00:10]} 25. dxc5 {[%emt 0:02:22]} Nxc5 {[%emt 0:00:27]} 26. Nxc5 {[%emt 0:00:23]} Rxc5 {[%emt 0:00:05]} 27. Qb4 {[%emt 0:00:14]} Rec7 {[%emt 0:01:05]} 28. Qb8+ {[%emt 0:00:25]} Rc8 {[%emt 0:00:32]} 29. Qxa8 {[%emt 0:00:11]} Rxa8 {[%emt 0:00:03]} 30. Rb2 {[%emt 0:00:06]} g5 {[%emt 0:04:31]} 31. Kf1 {[%emt 0:00:24]} g6 {[%emt 0:01:26]} 32. Rd1 {[%emt 0:00:15]} Kg7 {[%emt 0:00:40]} 33. Ke2 {[%emt 0:00:35]} f5 {[%emt 0:01:06]} 34. Rdd2 {[%emt 0:00:37]} Kf6 {[%emt 0:00:42]} 35. Rbc2 {[%emt 0:01:40]} Rca5 {[%emt 0:02:50]} 36. Kf3 {[%emt 0:00:18]} R8a6 {[%emt 0:00:43]} 37. g3 {[%emt 0:00:42]} Ra3 {[%emt 0:01:42]} 38. Rb2 {[%emt 0:01:39]} Ke5 {[%emt 0:00:36]} 39. Kg2 {[%emt 0:00:16]} R3a4 {[%emt 0:00:29]} 40. Kf3 {[%emt 0:02:35]} g4+ {[%emt 0:01:42]} 41. hxg4 {[%emt 0:00:16]} Rxg4 {[%emt 0:00:09]} 42. Rdc2 {[%emt 0:03:10]} Rga4 {[%emt 0:00:40]} 43. Ke2 {[%emt 0:00:39]} g5 {[%emt 0:00:30]} 44. Kd2 {[%emt 0:01:37]} Ke4 {[%emt 0:01:22]} 45. Ke2 {[%emt 0:01:50]} g4 {[%emt 0:00:22]} 46. Rd2 {[%emt 0:00:40]} R6a5 {[%emt 0:11:24]} 47. Rb6 {[%emt 0:06:55]} Ke5 {[%emt 0:03:44]} 48. Rbb2 {[%emt 0:00:35]} Rc4 {[%emt 0:03:09]} 49. Rbc2 {[%emt 0:01:53]} Ra3 {[%emt 0:02:32]} 50. Rb2 {[%emt 0:14:02]} Rc1 {[%emt 0:03:52]} 51. Rd3 {[%emt 0:01:38]} Ra4 {[%emt 0:00:48]} 52. Rd1 {[%emt 0:00:47]} Rc6 {[%emt 0:00:14]} 53. Rd3 {[%emt 0:01:43]} Ke4 {[%emt 0:02:50]} 54. Rbd2 {[%emt 0:01:24]} Rcc4 {[%emt 0:01:40]} 55. Kd1 {[%emt 0:01:19]} Ra5 {[%emt 0:01:51]} 56. Ke2 {[%emt 0:01:52]} Rc1 {[%emt 0:00:44]} 57. Rd4+ {[%emt 0:00:55]} Ke5 {[%emt 0:00:07]} 58. Rb2 {[%emt 0:00:07]} Ra1 {[%emt 0:00:40]} 59. Rdd2 {[%emt 0:00:23]} Ra4 {[%emt 0:04:39]} 60. Kd3 {[%emt 0:00:28]} Ra3+ {[%emt 0:02:28]} 61. Ke2 {[%emt 0:00:06]} Rh1 {[%emt 0:02:41]} 62. Rd3 {[%emt 0:03:01]} Ra4 {[%emt 0:00:50]} 63. Rd1 {[%emt 0:00:51]} Rh7 {[%emt 0:00:34]} 64. Rdd2 {[%emt 0:01:07]} Rha7 {[%emt 0:01:29]} 65. Kd3 {[%emt 0:00:15]} Ra3+ {[%emt 0:00:24]} 66. Ke2 {[%emt 0:00:07]} R7a4 {[%emt 0:00:14]} 67. Kf1 {[%emt 0:02:22]} Ke4 {[%emt 0:00:46]} 68. Ke2 {[%emt 0:01:26]} e5 {[%emt 0:00:50]} 69. Rb5 {[%emt 0:01:57]} d4 {[%emt 0:00:38]} 70. exd4 {[%emt 0:00:14]} exd4 {[%emt 0:02:54]} 71. Rb8 {[%emt 0:00:45]} d3+ {[%emt 0:02:01]} 72. Kf1 {[%emt 0:02:24]} Rd4 {[%emt 0:03:18]} 73. Re8+ {[%emt 0:00:20]} Kd5 {[%emt 0:00:08]} 74. f3 {[%emt 0:01:18]} gxf3 {[%emt 0:04:50]} 75. Kf2 {[%emt 0:00:24]} Rc4 {[%emt 0:01:19]} 76. Kxf3 {[%emt 0:01:10]} Rc2 {[%emt 0:00:34]} 77. Rd8+ {[%emt 0:02:28]} Kc4 {[%emt 0:00:10]} 78. Rc8+ {[%emt 0:00:35]} Kb4 {[%emt 0:00:53]} 79. Rb8+ {[%emt 0:00:06]} Kc5 {[%emt 0:00:43]} 80. Rc8+ {[%emt 0:00:55]} Kb6 {[%emt 0:01:54]} 81. Rb8+ {[%emt 0:00:19]} Kc7 {[%emt 0:00:44]} 82. Rb2 {[%emt 0:00:02]} Kc6 {[%emt 0:00:57]} 83. Ke3 {[%emt 0:00:12]} Kc5 {[%emt 0:00:10]} 84. Rb3 {[%emt 0:03:01]} Rxd2 {[%emt 0:00:40]} 85. Rxa3 {[%emt 0:01:05]} Rg2 {[%emt 0:00:11]} 86. Rxd3 {[%emt 0:00:06]} Rxg3+ {[%emt 0:00:08]} 87. Ke2 {[%emt 0:00:03]} Rg2+ {[%emt 0:00:03]} 88. Kf3 {[%emt 0:00:07]} Rxa2 {[%emt 0:00:03]} 89. Kf4 {[%emt 0:00:18]} Rf2+ {[%emt 0:00:09]} 90. Ke5 {[%emt 0:00:04]} Rf1 {[%emt 0:00:29]} 91. Rd5+ {[%emt 0:00:06]} Kc6 {[%emt 0:00:06]} 92. Rd4 {[%emt 0:00:06]} Kc5 {[%emt 0:00:40]} 93. Rf4 {[%emt 0:00:05]} 1/2-1/2

[Event "Chigorin Memorial 2019"]
[Site "Saint Petersburg"]
[Date "2019.10.12"]
[Round "8.10"]
[White "Can, Isik"]
[Black "Iljiushenok, Ilia"]
[Result "1-0"]
[ECO "B90"]
[WhiteElo "2361"]
[BlackElo "2540"]
[Annotator "ChessBase"]
[PlyCount "87"]
[EventDate "2019.10.05"]
[EventType "swiss"]
[EventCountry "RUS"]
[SourceTitle "playchess.com"]
[Source "ChessBase"]
[SourceQuality "1"]
[TimeControl "5400+30"]

1. e4 {[%emt 0:00:00]} c5 {[%emt 0:00:00]} 2. Nf3 {[%emt 0:00:00]} d6 {[%emt 0:00:00]} 3. d4 {[%emt 0:00:00]} cxd4 {[%emt 0:00:00]} 4. Nxd4 {[%emt 0:00:00]} Nf6 {[%emt 0:00:00]} 5. Nc3 {[%emt 0:00:00]} a6 {[%emt 0:00:06]} 6. Be3 {[%emt 0:00:00]} e5 {[%emt 0:01:23]} 7. Nb3 {[%emt 0:00:00]} Be6 {[%emt 0:02:16]} 8. h3 {[%emt 0:00:02]} Nc6 {[%emt 0:15:46]} 9. f4 {[%emt 0:01:10]} exf4 {[%emt 0:00:34]} 10. Bxf4 {[%emt 0:00:06]} Rc8 {[%emt 0:02:03]} 11. Qe2 {[%emt 0:02:56]} Nb4 {[%emt 0:01:44]} 12. O-O-O {[%emt 0:26:19]} Nxa2+ {[%emt 0:38:13]} 13. Nxa2 {[%emt 0:01:53]} Bxb3 {[%emt 0:00:13]} 14. Nc3 {[%emt 0:00:14]} Be6 {[%emt 0:04:56]} 15. e5 {[%emt 0:01:16]} Rxc3 {[%emt 0:00:34]} 16. bxc3 {[%emt 0:00:38]} Nd7 {[%emt 0:07:26]} 17. exd6 {[%emt 0:02:49]} Qa5 {[%emt 0:00:06]} 18. Qd3 {[%emt 0:27:53]} g5 {[%emt 0:08:24]} 19. Qd4 {[%emt 0:03:04]} Rg8 {[%emt 0:00:13]} 20. Bh2 {[%emt 0:01:54]} g4 {[%emt 0:06:34]} 21. Bf4 {[%emt 0:00:54]} Qa3+ {[%emt 0:00:16]} 22. Kd2 {[%emt 0:00:09]} a5 {[%emt 0:00:09]} 23. Re1 {[%emt 0:09:58]} Kd8 {[%emt 0:02:02]} 24. Ra1 {[%emt 0:02:21]} Qc5 {[%emt 0:04:45]} 25. Qxc5 {[%emt 0:02:39]} Nxc5 {[%emt 0:00:01]} 26. Rxa5 {[%emt 0:00:08]} Ne4+ {[%emt 0:00:09]} 27. Kc1 {[%emt 0:08:38]} Nxd6 {[%emt 0:00:37]} 28. Bxd6 {[%emt 0:03:19]} Bxd6 {[%emt 0:00:01]} 29. Ra8+ {[%emt 0:00:06]} Bc8 {[%emt 0:00:03]} 30. hxg4 {[%emt 0:01:20]} Rxg4 {[%emt 0:01:32]} 31. Be2 {[%emt 0:02:30]} Bf4+ {[%emt 0:02:17]} 32. Kb2 {[%emt 0:01:59]} Rxg2 {[%emt 0:00:35]} 33. Bf3 {[%emt 0:00:26]} Rg6 {[%emt 0:00:58]} 34. Rxh7 {[%emt 0:00:18]} Rb6+ {[%emt 0:02:12]} 35. Ka1 {[%emt 0:00:02]} Be5 {[%emt 0:00:18]} 36. Bg4 {[%emt 0:00:57]} Bxc3+ {[%emt 0:00:35]} 37. Ka2 {[%emt 0:00:03]} Ra6+ {[%emt 0:00:47]} 38. Rxa6 {[%emt 0:00:03]} Bxg4 {[%emt 0:00:07]} 39. Rb6 {[%emt 0:02:15]} Bf3 {[%emt 0:00:57]} 40. Kb1 {[%emt 0:00:56]} Ke7 {[%emt 0:00:35]} 41. Rh3 {[%emt 0:00:34]} Bd4 {[%emt 0:00:04]} 42. Rb4 {[%emt 0:00:09]} Bg2 {[%emt 0:00:41]} 43. Rg3 {[%emt 0:00:31]} Bc5 {[%emt 0:00:14]} 44. Rb5 {[%emt 0:00:07]} 1-0